fUSD/lending_fUSD_20260322
["ID","MTS","AMOUNT","RATE_DAILY","PERIOD"]
[408708074,1774162241203,-151.0,0.00015779,2]
[408708075,1774162241211,-198.792267,0.00015779,2]
[408708076,1774162241221,-198.792267,0.00015779,2]
[408708077,1774162241231,-5064.9223047,0.00015779,2]
[408708078,1774162241239,-617.716858,0.00015779,2]
[408708079,1774162241248,-198.792267,0.00015779,2]
[408708080,1774162241257,-617.716858,0.00015779,2]
[408708081,1774162241266,-198.792267,0.00015779,2]
[408708082,1774162241275,-617.716858,0.00015779,2]
[408708083,1774162241285,-617.716858,0.00015779,2]
[408708084,1774162241296,-568.5,0.00015782,2]
[408708085,1774162241305,-1400.0,0.000158,5]
[408708086,1774162241316,-456.98,0.000158,2]
[408708087,1774162241326,-1165.17,0.000158,2]
[408708088,1774162241336,-204.451999,0.00015858,2]
[408708089,1774162241346,-197.38732,0.0001586,2]
[408708090,1774162241356,-500.0,0.00015872,2]
[408708091,1774162241366,-2000.0,0.0001589,2]
[408708092,1774162241375,-4000.0,0.00015895,2]
[408708093,1774162241384,-280.88178686,0.000159,2]
[408708094,1774162241395,-1400.0,0.000159,5]
[408708095,1774162241406,-998.0,0.000159,2]
[408708096,1774162241417,-407.06345304,0.000159,2]
[408708097,1774162241426,-607.78772171,0.000159,2]
[408708098,1774162241436,-3003.0,0.000159,2]
[408708099,1774162241446,-197.38731,0.0001591,2]
[408708100,1774162241458,-889.0,0.00015926,2]
[408708101,1774162241468,-1521.0,0.00015932,2]
[408708102,1774162241480,-1521.0,0.00015932,2]
[408708103,1774162241490,-1521.0,0.00015932,2]
[408708104,1774162241501,-1521.0,0.00015932,2]
[408708105,1774162241511,-151.0,0.00015932,2]
[408708106,1774162241521,-1521.0,0.00015932,2]
[408708107,1774162241531,-151.0,0.00015932,2]
[408708108,1774162241542,-1521.0,0.00015932,2]
[408708109,1774162241551,-180.65887883,0.00015932,2]
[408708110,1774162241562,-1521.0,0.00015932,2]
[408708111,1774162241578,-1521.0,0.00015932,2]
[408708112,1774162241588,-1521.0,0.00015932,2]
[408708113,1774162241598,-1521.0,0.00015932,2]
[408708114,1774162241609,-1521.0,0.00015932,2]
[408708115,1774162241618,-1521.0,0.00015932,2]
[408708116,1774162241627,-1521.0,0.00015932,2]
[408708117,1774162241638,-1521.0,0.00015932,2]
[408708118,1774162241647,-1521.0,0.00015932,2]
[408708119,1774162241657,-1521.0,0.00015932,2]
[408708120,1774162241666,-1521.0,0.00015932,2]
[408708121,1774162241675,-1521.0,0.00015932,2]
[408708122,1774162241684,-1521.0,0.00015932,2]
[408708123,1774162241695,-1521.0,0.00015932,2]
[408708124,1774162241704,-1521.0,0.00015932,2]
[408708125,1774162241713,-1521.0,0.00015932,2]
[408708126,1774162241723,-1521.0,0.00015932,2]
[408708127,1774162241732,-634.95984116,0.00015932,2]
[408708128,1774162241741,-151.0,0.00015932,2]
[408708129,1774162241750,-152.9423243,0.00015932,2]
[408708130,1774162241760,-153.0,0.00015932,2]
[408708131,1774162241769,-153.0,0.00015932,2]
[408708132,1774162241778,-180.43,0.00015951,30]
[408708133,1774162241788,-180.43,0.00015951,30]
[408708134,1774162241797,-180.43,0.00015951,30]
[408708135,1774162241807,-739.0,0.00015958,2]
[408708136,1774162241816,-974.0,0.00015958,2]
[408708137,1774162241826,-197.38732,0.0001596,2]
[408708138,1774162241837,-2403.0,0.00015963,2]
[408708139,1774162241848,-390.12270077,0.00015973,2]
[408708140,1774162241858,-500.0,0.00015973,2]
[408708141,1774162241868,-500.0,0.00015973,2]
[408708142,1774162241878,-500.0,0.00015973,2]
[408708143,1774162241887,-500.44177829,0.00015973,2]
[408708144,1774162241897,-429.72595636,0.0001599,2]
[408708145,1774162241906,-429.72595636,0.0001599,2]
[408708146,1774162241915,-151.0,0.00015997,2]
[408708147,1774162241926,-1240.67378239,0.00015999,5]
[408708148,1774162241936,-1903172.07992043,0.00016,2]
[408708149,1774162241947,-4556682.13504592,0.00016,2]
[408708150,1774162242126,-126723.84732145,0.00016,2]
[408708151,1774162242138,-78228.43373349,0.00016,2]
[408708152,1774162242149,-20441.79696029,0.00016,2]
[408708153,1774162242160,-298.29365244,0.00016,2]
[408708154,1774162242178,-18385.88561907,0.00016,2]
[408708155,1774162242190,-373.5644,0.00016,2]
[408708156,1774162242201,-2090.40897658,0.00016,2]
[408708157,1774162242212,-395.472,0.00016,2]
[408708158,1774162242223,-857.81402166,0.00016,2]
[408708161,1774162242785,-6008.0,0.00015661,2]
[408708162,1774162242794,-186.54,0.00015661,2]
[408708163,1774162242804,-219.6456524,0.000159,2]
[408708164,1774162242813,-3035.32588635,0.00016,2]
[408708165,1774162242944,-620.07266745,0.00016,2]
[408708166,1774162242956,-2112.68772881,0.00016,2]
[408708167,1774162242968,-6255.84302023,0.00016,2]
[408708168,1774162242979,-5642.70196642,0.00016,2]
[408708169,1774162243032,-2432.6275441,0.00016,2]
[408708170,1774162245625,-34728.3124931,0.00016,2]
[408708207,1774162246817,-6868.89451357,0.00016,2]
[408708208,1774162246829,-444.58999998,0.00016,2]
[408708209,1774162345985,15901.58,0.00017,60]
[408708210,1774162567827,193.73019871,0.00012399,2]
[408708211,1774162576837,7435.338186,0.00012373,2]
[408708212,1774162726865,-1481.1818931,0.00012435,2]
[408708213,1774162726893,-2037.6462138,0.00012435,2]
[408708214,1774162729677,-2962.3537862,0.00012435,2]
[408708215,1774162729705,-250.0,0.00012435,2]
[408708216,1774162732783,-5000.0,0.00012473,2]
[408708217,1774162738810,-5000.0,0.00012473,2]
[408708218,1774162889362,193.7301987,0.00012373,2]
[408708219,1774162899717,-300.0,0.00012472,2]
[408708220,1774162899744,-2467.32742058,0.00012473,2]
[408708221,1774162899771,-500.0,0.00012473,2]
[408708222,1774162899798,-500.0,0.00012473,2]
[408708223,1774162899826,-500.0,0.00012473,2]
[408708224,1774162899854,-500.0,0.00012473,2]
[408708225,1774162900038,-476.06020844,0.00012473,2]
[408708226,1774162900066,-300.0,0.00012498,2]
[408708227,1774162900095,-1200.0,0.00012498,2]
[408708228,1774162900123,-300.0,0.00012498,2]
[408708229,1774162900150,-300.0,0.00012498,2]
[408708230,1774162900178,-150.0,0.00012499,2]
[408708231,1774162900207,-1414.23358312,0.00012499,2]
[408708232,1774162902653,-1719.42241688,0.00012499,2]
[408708233,1774162902682,-175.61,0.00012499,2]
[408708234,1774162902711,-1000.0,0.000125,2]
[408708235,1774162906460,-7743.90094108,0.000125,2]
[408708236,1774162907108,-10000.01,0.000125,2]
[408708237,1774163004886,-300.0,0.00012499,2]
[408708238,1774163004919,-300.0,0.00012499,2]
[408708239,1774163004947,-300.0,0.00012499,2]
[408708240,1774163005011,-8200.01,0.000125,2]
[408708241,1774163005050,-2959.02384108,0.000125,2]
[408708242,1774163005074,-4081.96231784,0.000125,2]
[408708246,1774163372091,-326.0,0.00013475,2]
[408708247,1774163372113,-161.83,0.00013559,2]
[408708248,1774163372135,-250.0,0.00013561,2]
[408708249,1774163372155,-2509.48152443,0.00013561,2]
[408708257,1774163431786,-2490.51847557,0.00013561,2]
[408708258,1774163431796,-2000.0,0.00013563,2]
[408708259,1774163431806,-500.0,0.00013581,2]
[408708260,1774163431818,-193.7301987,0.0001362,2]
[408708261,1774163431827,-1200.0,0.00013644,2]
[408708262,1774163431837,-2864.48,0.00013645,2]
[408708263,1774163431847,-300.0,0.00013748,2]
[408708264,1774163431857,-150.0,0.00013748,2]
[408708265,1774163431867,-173.0,0.00013748,2]
[408708266,1774163431877,-9922.97,0.00013749,2]
[408708267,1774163431887,-299.99,0.00013749,2]
[408708268,1774163431896,-350.95,0.00013749,2]
[408708269,1774163431906,-150.99,0.00013749,2]
[408708270,1774163431916,-999.99,0.00013749,2]
[408708271,1774163431926,-150.99,0.00013749,2]
[408708272,1774163431936,-523.0,0.00014,2]
[408708273,1774163431945,-150.0,0.00014,2]
[408708274,1774163431955,-700.0,0.00014082,2]
[408708275,1774163431965,-1500.0,0.00014103,2]
[408708276,1774163431975,-180.0,0.00014266,2]
[408708277,1774163431985,-322.0,0.00014268,2]
[408708278,1774163431995,-1012.77724963,0.00014353,2]
[408708279,1774163432005,-600.0,0.00014354,2]
[408708280,1774163432014,-150.06792128,0.00014354,2]
[408708281,1774163432024,-195.0,0.00014354,2]
[408708282,1774163432034,-195.0,0.00014354,2]
[408708283,1774163432043,-195.0,0.00014354,2]
[408708284,1774163432053,-195.0,0.00014354,2]
[408708286,1774163432064,-300.0,0.00014354,2]
[408708288,1774163432076,-300.0,0.00014354,2]
[408708290,1774163432086,-300.23645254,0.00014354,2]
[408708293,1774163432096,-200.0,0.00014354,2]
[408708295,1774163432106,-2551.92689981,0.00014354,2]
[408708296,1774163432115,-300.0,0.00014354,2]
[408708298,1774163432124,-300.0,0.00014354,2]
[408708300,1774163432134,-414.32525426,0.00014354,2]
[408708302,1774163432143,-500.0,0.00014354,2]
[408708304,1774163432153,-500.0,0.00014354,2]
[408708306,1774163432162,-500.0,0.00014354,2]
[408708308,1774163432172,-500.0,0.00014354,2]
[408708310,1774163432182,-503.06085367,0.00014354,2]
[408708311,1774163432192,-600.0,0.00014354,2]
[408708313,1774163432201,-600.0,0.00014354,2]
[408708315,1774163432221,-600.0,0.00014354,2]
[408708316,1774163432232,-607.0025678,0.00014354,2]
[408708317,1774163432242,-600.0,0.00014356,2]
[408708318,1774163432251,-600.0,0.00014356,2]
[408708319,1774163432261,-152.0,0.00014362,3]
[408708320,1774163432271,-416.9,0.00014404,2]
[408708321,1774163432281,-161.83,0.00014406,2]
[408708322,1774163432291,-154.38343801,0.00014528,2]
[408708323,1774163432301,-3746.1706,0.0001453,2]
[408708324,1774163432311,-57444.1268,0.0001453,2]
[408708325,1774163432320,-500.0,0.00014597,2]
[408708326,1774163432330,-500.0,0.00014597,2]
[408708327,1774163432339,-500.0,0.00014597,2]
[408708328,1774163432349,-313.89986489,0.00014597,2]
[408708329,1774163432359,-500.0,0.00014597,2]
[408708330,1774163432370,-500.0,0.00014597,2]
[408708331,1774163432379,-200.0,0.00014597,2]
[408708332,1774163432389,-151.0,0.00014597,2]
[408708333,1774163432399,-500.0,0.00014597,2]
[408708334,1774163432409,-151.0,0.00014597,2]
[408708335,1774163432419,-500.0,0.00014597,2]
[408708336,1774163432429,-151.0,0.00014597,2]
[408708337,1774163432438,-500.0,0.00014597,2]
[408708338,1774163432447,-500.0,0.00014597,2]
[408708339,1774163432457,-151.0,0.00014597,2]
[408708340,1774163432467,-151.0,0.00014597,2]
[408708341,1774163432478,-555.45475179,0.00014597,2]
[408708342,1774163432488,-500.0,0.00014597,2]
[408708343,1774163432498,-151.0,0.00014597,2]
[408708344,1774163432508,-151.0,0.00014597,2]
[408708345,1774163432518,-500.0,0.00014597,2]
[408708346,1774163432527,-151.0,0.00014597,2]
[408708347,1774163432537,-151.0,0.00014597,2]
[408708348,1774163432547,-500.0,0.00014597,2]
[408708349,1774163432556,-151.0,0.00014597,2]
[408708350,1774163432568,-151.0,0.00014597,2]
[408708351,1774163432581,-500.0,0.00014597,2]
[408708352,1774163432592,-151.0,0.00014597,2]
[408708353,1774163432601,-151.0,0.00014597,2]
[408708354,1774163432612,-500.0,0.00014597,2]
[408708355,1774163432622,-151.0,0.00014597,2]
[408708356,1774163432631,-151.0,0.00014597,2]
[408708357,1774163432642,-500.0,0.00014597,2]
[408708358,1774163432652,-151.0,0.00014597,2]
[408708359,1774163432664,-151.0,0.00014597,2]
[408708360,1774163432674,-500.0,0.00014597,2]
[408708361,1774163432685,-151.0,0.00014597,2]
[408708362,1774163432694,-151.0,0.00014597,2]
[408708363,1774163432704,-151.0,0.00014597,2]
[408708364,1774163432715,-151.0,0.00014597,2]
[408708365,1774163432725,-151.0,0.00014597,2]
[408708366,1774163432736,-151.0,0.00014597,2]
[408708367,1774163432746,-151.0,0.00014597,2]
[408708368,1774163432756,-151.0,0.00014597,2]
[408708369,1774163432770,-151.0,0.00014597,2]
[408708370,1774163432780,-151.0,0.00014597,2]
[408708371,1774163432791,-151.0,0.00014597,2]
[408708372,1774163432801,-151.0,0.00014597,2]
[408708373,1774163432811,-151.0,0.00014597,2]
[408708374,1774163432822,-151.0,0.00014597,2]
[408708375,1774163432833,-889.69993683,0.000146,2]
[408708376,1774163432843,-2210.76013838,0.000146,2]
[408708377,1774163432853,-2003.86101848,0.000146,2]
[408708378,1774163432863,-2417.65925833,0.000146,2]
[408708379,1774163432872,-300.0,0.000146,5]
[408708380,1774163432883,-150.4393191,0.00014604,2]
[408708381,1774163432892,-676.1668,0.00014605,2]
[408708382,1774163432902,-1000.0,0.00014606,2]
[408708383,1774163432913,-32984.9071,0.00014606,2]
[408708384,1774163432923,-2500.0,0.00014606,2]
[408708385,1774163432932,-5000.0,0.00014606,2]
[408708386,1774163432945,-245.54470639,0.0001462,2]
[408708387,1774163432954,-3606.70028383,0.0001462,2]
[408708388,1774163432970,-7522.69420204,0.0001462,2]
[408708389,1774163432985,-7736.60016929,0.0001462,2]
[408708390,1774163433005,-1344.9,0.0001463,2]
[408708391,1774163433031,-534.00512476,0.00014652,2]
[408708392,1774163433049,-429.72595636,0.00014696,2]
[408708393,1774163433063,-700.0,0.000147,5]
[408708394,1774163433073,-500.0,0.00014705,2]
[408708395,1774163433083,-500.0,0.00014705,2]
[408708396,1774163433093,-500.0,0.00014705,2]
[408708397,1774163433115,-259.67209506,0.00014705,2]
[408708398,1774163433124,-403.51052353,0.00014705,2]
[408708399,1774163433134,-500.0,0.00014705,2]
[408708400,1774163433144,-500.0,0.00014705,2]
[408708401,1774163433154,-500.0,0.00014705,2]
[408708402,1774163433164,-500.0,0.00014705,2]
[408708403,1774163433177,-500.0,0.00014705,2]
[408708404,1774163433187,-500.0,0.00014705,2]
[408708405,1774163433196,-500.0,0.00014705,2]
[408708406,1774163433206,-202.44797105,0.00014705,2]
[408708407,1774163433216,-500.0,0.00014705,2]
[408708408,1774163433229,-381.59938463,0.00014705,2]
[408708409,1774163433239,-250.0,0.00014705,2]
[408708410,1774163433249,-500.0,0.00014705,2]
[408708411,1774163433258,-500.0,0.00014705,2]
[408708412,1774163433268,-500.0,0.00014705,2]
[408708413,1774163433277,-500.0,0.00014705,2]
[408708414,1774163433288,-500.0,0.00014705,2]
[408708415,1774163433298,-500.0,0.00014705,2]
[408708416,1774163433319,-500.0,0.00014705,2]
[408708417,1774163433331,-500.0,0.00014705,2]
[408708418,1774163433359,-500.0,0.00014705,2]
[408708419,1774163433389,-500.0,0.00014705,2]
[408708420,1774163433407,-500.0,0.00014705,2]
[408708421,1774163433422,-500.0,0.00014705,2]
[408708422,1774163433449,-500.0,0.00014705,2]
[408708423,1774163433463,-500.0,0.00014705,2]
[408708424,1774163433475,-500.0,0.00014705,2]
[408708425,1774163433486,-500.0,0.00014705,2]
[408708426,1774163433496,-500.0,0.00014705,2]
[408708427,1774163433506,-500.0,0.00014705,2]
[408708428,1774163433544,-500.0,0.00014705,2]
[408708429,1774163433563,-500.0,0.00014705,2]
[408708430,1774163433575,-500.0,0.00014705,2]
[408708431,1774163433602,-500.0,0.00014705,2]
[408708432,1774163433614,-500.0,0.00014705,2]
[408708433,1774163433625,-500.0,0.00014705,2]
[408708434,1774163433636,-500.0,0.00014705,2]
[408708435,1774163433646,-500.0,0.00014705,2]
[408708436,1774163433656,-500.0,0.00014705,2]
[408708437,1774163433668,-500.0,0.00014705,2]
[408708438,1774163433679,-500.0,0.00014705,2]
[408708439,1774163433690,-500.0,0.00014705,2]
[408708440,1774163433702,-500.0,0.00014705,2]
[408708441,1774163433713,-285.23610559,0.00014705,2]
[408708442,1774163433723,-500.0,0.00014705,2]
[408708443,1774163433752,-500.0,0.00014705,2]
[408708444,1774163433763,-500.0,0.00014705,2]
[408708445,1774163433774,-500.0,0.00014705,2]
[408708446,1774163433783,-500.0,0.00014705,2]
[408708447,1774163433795,-500.0,0.00014705,2]
[408708448,1774163433810,-474.29502876,0.00014705,2]
[408708449,1774163433838,-500.0,0.00014705,2]
[408708450,1774163433852,-500.0,0.00014705,2]
[408708451,1774163433868,-500.0,0.00014705,2]
[408708452,1774163433879,-500.0,0.00014705,2]
[408708453,1774163433891,-500.0,0.00014705,2]
[408708454,1774163433903,-500.0,0.00014705,2]
[408708455,1774163433913,-500.0,0.00014705,2]
[408708456,1774163433925,-500.0,0.00014705,2]
[408708457,1774163433935,-428.52361056,0.00014705,2]
[408708458,1774163433947,-500.0,0.00014705,2]
[408708459,1774163433957,-500.0,0.00014705,2]
[408708460,1774163433967,-500.0,0.00014705,2]
[408708461,1774163433976,-405.11438041,0.00014705,2]
[408708462,1774163433986,-1909.0,0.00014705,5]
[408708463,1774163433995,-908679.55146413,0.00014706,2]
[408708464,1774163434011,-202539.63632449,0.00014706,2]
[408708465,1774163434023,-251723.46970539,0.00014706,2]
[408708466,1774163434034,-252190.40269423,0.00014706,2]
[408708467,1774163434047,-585.43242494,0.00014706,2]
[408708468,1774163434060,-1991.83919721,0.00014706,2]
[408708469,1774163434074,-609.8984744,0.00014706,2]
[408708470,1774163434089,-832.28,0.00014706,2]
[408708471,1774163434100,-750.0,0.00014706,2]
[408708472,1774163434112,-266.38014877,0.00014706,2]
[408708473,1774163434131,-666.96670514,0.00014706,2]
[408708479,1774163437916,-1620.0,0.00014706,2]
[408708480,1774163438030,-1277.27139037,0.00014706,2]
[408708481,1774163438146,-1657.10039861,0.00014706,2]
[408708639,1774163440145,-1425.82817633,0.00014606,2]
[408708646,1774163440209,-3574.17182367,0.00014606,2]
[408708648,1774163440218,-874609.77107232,0.00014706,2]
[408708650,1774163440228,-2402.0,0.0001472,2]
[408708652,1774163440237,-7522.69420204,0.00014762,2]
[408708653,1774163440247,-912.28,0.00014768,2]
[408708655,1774163440256,-2527.15,0.000148,2]
[408708657,1774163440266,-1757.76376931,0.000148,2]
[408708659,1774163440275,-1100.0,0.000148,5]
[408708661,1774163440284,-255.0,0.00014861,2]
[408708663,1774163440294,-7736.60016928,0.00014876,2]
[408708665,1774163440303,-1500.0,0.000149,5]
[408708667,1774163440312,-7522.69420204,0.00014904,2]
[408708669,1774163440322,-250.0,0.00014915,2]
[408708670,1774163440332,-5000.0,0.00014915,2]
[408708672,1774163440341,-3606.70028377,0.00014986,2]
[408708674,1774163440351,-250.0,0.00015,2]
[408708676,1774163440360,-200.0,0.00015,2]
[408708678,1774163440370,-200.0,0.00015,2]
[408708680,1774163440379,-1680.0,0.00015008,2]
[408708682,1774163440388,-2403.0,0.0001504,2]
[408708683,1774163440398,-1568.0,0.0001504,2]
[408708685,1774163440407,-7522.69420204,0.00015047,2]
[408708687,1774163440416,-152.0,0.00015049,4]
[408708689,1774163440429,-1402.0,0.00015053,5]
[408708691,1774163440439,-160.0,0.00015068,2]
[408708693,1774163440448,-979.16666667,0.00015069,2]
[408708695,1774163440458,-160.0,0.00015069,2]
[408708697,1774163440468,-444.38391213,0.00015089,2]
[408708699,1774163440478,-7736.60016928,0.00015132,2]
[408708701,1774163440488,-200.0,0.00015145,2]
[408708703,1774163440497,-3606.70028377,0.00015169,2]
[408708704,1774163440507,-7522.69420204,0.00015189,2]
[408708706,1774163440516,-197.1924,0.000152,2]
[408708708,1774163440526,-5094.34373443,0.000152,2]
[408708710,1774163440536,-5000.0,0.000152,2]
[408708712,1774163440545,-10000.0,0.00015205,2]
[408708714,1774163440555,-161.83,0.00015254,2]
[408708715,1774163440565,-2000.0,0.00015258,2]
[408708717,1774163440574,-1261.0,0.00015299,2]
[408708719,1774163440585,-1001.35,0.0001531,2]
[408708721,1774163440594,-6152.2,0.0001531,2]
[408708723,1774163440604,-1215.0,0.00015311,2]
[408708724,1774163440613,-924.0,0.00015311,2]
[408708725,1774163440623,-7522.69420204,0.00015331,2]
[408708726,1774163440633,-406.133496,0.00015346,7]
[408708727,1774163440642,-3606.70028377,0.00015351,2]
[408708728,1774163440651,-245.54470633,0.00015367,2]
[408708729,1774163440660,-500.0,0.0001537,2]
[408708730,1774163440670,-7736.60016928,0.00015388,2]
[408708731,1774163440679,-308.47240642,0.00015391,2]
[408708732,1774163440688,-270.645,0.00015403,30]
[408708733,1774163440698,-2466.0,0.00015418,2]
[408708734,1774163440707,-3760.0,0.00015418,2]
[408708735,1774163440716,-442.75882872,0.00015422,2]
[408708736,1774163440725,-438.88,0.00015422,2]
[408708737,1774163440735,-442.32,0.00015424,2]
[408708738,1774163440744,-700.0,0.00015452,2]
[408708739,1774163440753,-7522.69420204,0.00015473,2]
[408708740,1774163440762,-16230.15,0.00015474,2]
[408708741,1774163440772,-912.28,0.00015507,2]
[408708742,1774163440781,-4000.0,0.00015507,2]
[408708743,1774163440790,-3606.70028377,0.00015534,2]
[408708744,1774163440799,-1757.7637693,0.00015569,2]
[408708745,1774163440808,-461.970636,0.00015582,7]
[408708746,1774163440821,-1900.0,0.000156,5]
[408708747,1774163440830,-7522.69420204,0.00015616,2]
[408708748,1774163440840,-7736.60016928,0.00015644,2]
[408708749,1774163440850,-442.32,0.00015648,2]
[408708750,1774163440859,-429.72595636,0.00015649,2]
[408708751,1774163440869,-438.88,0.00015653,2]
[408708752,1774163440878,-1500000.0,0.00015659,2]
[408708753,1774163440888,-1345.0,0.00015661,2]
[408708754,1774163440897,-1044.0,0.00015661,2]
[408708755,1774163440906,-3514.0,0.00015661,2]
[408708756,1774163440916,-150.0,0.00015661,2]
[408708757,1774163440925,-500.0,0.00015673,2]
[408708758,1774163440934,-500.0,0.00015673,2]
[408708759,1774163440943,-500.43058459,0.00015673,2]
[408708760,1774163440953,-500.74920901,0.00015673,2]
[408708761,1774163440962,-500.70382414,0.00015673,2]
[408708762,1774163440976,-500.0,0.00015673,2]
[408708763,1774163440991,-500.4848322,0.00015673,2]
[408708764,1774163441005,-500.0,0.00015673,2]
[408708765,1774163441018,-500.0,0.00015673,2]
[408708766,1774163441029,-500.0,0.00015673,2]
[408708767,1774163441042,-500.0,0.00015673,2]
[408708768,1774163441055,-500.0,0.00015673,2]
[408708769,1774163441070,-500.0,0.00015673,2]
[408708770,1774163441084,-500.55967201,0.00015673,2]
[408708771,1774163441097,-500.0,0.00015673,2]
[408708772,1774163441111,-390.12270077,0.00015673,2]
[408708773,1774163441123,-500.44177829,0.00015673,2]
[408708774,1774163441134,-500.0,0.00015673,2]
[408708775,1774163441146,-500.0,0.00015673,2]
[408708776,1774163441157,-1913.3247133,0.0001568,2]
[408708777,1774163441170,-247.340192,0.0001568,7]
[408708778,1774163441187,-410.298316,0.0001568,7]
[408708779,1774163441200,-160.0,0.0001568,7]
[408708780,1774163441212,-442.530909,0.0001568,7]
[408708781,1774163441226,-318.053903,0.0001568,7]
[408708782,1774163441239,-164.89346,0.0001568,7]
[408708783,1774163441251,-309.496449,0.0001568,7]
[408708784,1774163441264,-211.43898215,0.00015693,2]
[408708785,1774163441278,-300.0,0.000157,5]
[408708786,1774163441291,-284.69808,0.00015714,2]
[408708787,1774163441305,-3606.70028377,0.00015717,2]
[408708788,1774163441318,-600.0,0.00015726,2]
[408708789,1774163441330,-600.0,0.00015726,2]
[408708790,1774163441342,-352.32522553,0.00015729,2]
[408708791,1774163441355,-152.0,0.00015736,5]
[408708792,1774163441372,-7522.69420204,0.00015758,2]
[408708793,1774163441386,-444.38391211,0.00015795,2]
[408708794,1774163441400,-300.0,0.000158,5]
[408708795,1774163441413,-10265.07525548,0.0001584,2]
[408708796,1774163441424,-442.33,0.00015871,2]
[408708797,1774163441435,-438.90365876,0.00015871,2]
[408708798,1774163441447,-500.0,0.00015872,2]
[408708799,1774163441460,-4000.0,0.00015895,2]
[408708800,1774163441475,-4899.8829,0.000159,2]
[408708801,1774163441486,-73983.85660975,0.000159,2]
[408708802,1774163441496,-300.0,0.000159,5]
[408708803,1774163441507,-3606.70028377,0.000159,2]
[408708804,1774163441518,-7522.69420204,0.000159,2]
[408708805,1774163441530,-7736.60016928,0.000159,2]
[408708806,1774163441548,-270.645,0.00015951,30]
[408708807,1774163441560,-203.0,0.00015963,2]
[408708808,1774163441571,-204.451999,0.00015965,2]
[408708809,1774163441582,-151.0,0.00015982,2]
[408708810,1774163441593,-1521.0,0.00015982,2]
[408708811,1774163441605,-151.0,0.00015982,2]
[408708812,1774163441616,-1521.0,0.00015982,2]
[408708813,1774163441628,-180.65887883,0.00015982,2]
[408708814,1774163441640,-1521.0,0.00015982,2]
[408708815,1774163441655,-1521.0,0.00015982,2]
[408708816,1774163441667,-1521.0,0.00015982,2]
[408708817,1774163441679,-1521.0,0.00015982,2]
[408708818,1774163441691,-1521.0,0.00015982,2]
[408708819,1774163441703,-1521.0,0.00015982,2]
[408708820,1774163441715,-1521.0,0.00015982,2]
[408708821,1774163441727,-1521.0,0.00015982,2]
[408708822,1774163441739,-1521.0,0.00015982,2]
[408708823,1774163441750,-1521.0,0.00015982,2]
[408708824,1774163441762,-1521.0,0.00015982,2]
[408708825,1774163441774,-1521.0,0.00015982,2]
[408708826,1774163441786,-1521.0,0.00015982,2]
[408708827,1774163441797,-1521.0,0.00015982,2]
[408708828,1774163441808,-1521.0,0.00015982,2]
[408708829,1774163441820,-1521.0,0.00015982,2]
[408708830,1774163441832,-1521.0,0.00015982,2]
[408708831,1774163441843,-1521.0,0.00015982,2]
[408708832,1774163441855,-1521.0,0.00015982,2]
[408708833,1774163441867,-1521.0,0.00015982,2]
[408708834,1774163441880,-1521.0,0.00015982,2]
[408708835,1774163441892,-634.95984116,0.00015982,2]
[408708836,1774163441907,-151.0,0.00015982,2]
[408708837,1774163441919,-153.0,0.00015982,2]
[408708838,1774163441931,-152.9423243,0.00015982,2]
[408708839,1774163441943,-153.0,0.00015982,2]
[408708840,1774163441955,-429.72595636,0.0001599,2]